bitfinex/quotes_SOLUSD_20250822
["timestamp","ask_amount","ask_price","bid_price","bid_amount"]
[1755824488171,4.93344846,181.76,181.71,30.93344846]
[1755824488375,0.7,181.74,181.71,30.93344846]
[1755824488573,0.7,181.74,181.72,16.547616]
[1755824489074,0.06,181.73,181.72,16.547616]
[1755824489370,0.76,181.73,181.72,16.547616]
[1755824494068,0.76,181.73,181.72,21.48106446]
[1755824496764,0.06,181.73,181.72,21.48106446]
[1755824501865,0.06,181.73,181.72,16.547616]
[1755824502059,0.76,181.73,181.72,21.48106446]
[1755824502792,0.06,181.73,181.72,21.48106446]
[1755824506373,0.06,181.73,181.72,36.04098161]
[1755824506683,0.06,181.73,181.72,41.54395321]
[1755824511110,0.06,181.73,181.72,40.86395321]
[1755824513480,0.06,181.73,181.72,83.16395321]
[1755824514580,0.06,181.73,181.72,83.86395321]
[1755824516193,0.06,181.73,181.72,83.16395321]
[1755824520299,0.78,181.73,181.72,78.23050475]
[1755824520503,0.06,181.73,181.72,83.16395321]
[1755824524382,0.06,181.73,181.72,81.37571697]
[1755824525613,0.78,181.73,181.72,16.547616]
[1755824525798,0.78,181.73,181.72,67.49579982]
[1755824526110,0.06,181.73,181.72,39.07571697]
[1755824526516,0.78,181.73,181.72,25.19579982]
[1755824526887,0.78,181.73,181.72,16.547616]
[1755824527804,0.78,181.73,181.72,42.547616]
[1755824533286,3.92521222,181.73,181.72,42.547616]
[1755824533707,7.63616549,181.73,181.72,16.547616]
[1755824533919,11.75947433,181.73,181.72,16.547616]
[1755824534097,8.04852106,181.73,181.72,16.547616]
[1755824534299,11.75947433,181.73,181.72,16.547616]
[1755824534914,15.8827669,181.73,181.72,16.547616]
[1755824535290,15.88303697,181.73,181.72,16.547616]
[1755824536417,17.6566144,181.73,181.72,16.547616]
[1755824536818,12.73782475,181.73,181.72,16.547616]
[1755824537122,47.99878965,181.73,181.72,16.547616]
[1755824537307,51.70974292,181.73,181.72,16.547616]
[1755824537818,46.79095327,181.73,181.72,16.547616]
[1755824538003,51.70974292,181.73,181.72,16.547616]
[1755824540819,0.06,181.73,181.72,16.547616]
[1755824541026,42.36,181.73,181.72,16.547616]
[1755824541321,43.03,181.73,181.72,16.547616]
[1755824541521,0.06,181.73,181.72,16.547616]
[1755824541711,0.06,181.73,181.72,17.207616]
[1755824542423,0.06,181.73,181.72,22.12640565]
[1755824543002,0.06,181.73,181.72,27.62937725]
[1755824543204,0.06,181.73,181.72,41.5092944]
[1755824543698,0.06,181.73,181.72,35.3463228]
[1755824545604,0.06,181.73,181.72,40.8492944]
[1755824545926,0.06,181.73,181.72,41.5092944]
[1755824549331,0.06,181.75,181.72,41.5092944]
[1755824549332,0.06,181.75,181.74,13.59559401]
[1755824549634,0.06,181.75,181.74,61.1387068]
[1755824549810,0.06,181.75,181.74,61.7987068]
[1755824550950,0.06,181.75,181.74,67.30107281]
[1755824552918,0.06,181.75,181.74,69.50656981]
[1755824553639,0.06,181.75,181.74,68.84656981]
[1755824554422,0.06,181.75,181.74,26.50656981]
[1755824554625,0.73,181.75,181.74,26.50656981]
[1755824554939,0.73,181.75,181.74,7.12428665]
[1755824555108,0.73,181.75,181.74,28.205497]
[1755824555308,0.73,181.75,181.74,2.205497]
[1755824555811,0.73,181.75,181.74,7.70786301]
[1755824556013,0.73,181.75,181.74,12.62665266]
[1755824556709,0.06,181.75,181.74,12.62665266]
[1755824558935,0.06,181.75,181.74,26.50656981]
[1755824559114,0.06,181.75,181.74,27.16656981]
[1755824559628,0.06,181.75,181.74,53.16656981]
[1755824559810,0.06,181.75,181.74,52.50656981]
[1755824560014,0.73,181.75,181.74,7.12428665]
[1755824560222,0.73,181.75,181.74,2.205497]
[1755824561932,0.73,181.75,181.74,7.12428665]
[1755824562921,0.73,181.75,181.74,2.205497]
[1755824563239,0.73,181.75,181.74,28.205497]
[1755824564844,0.06,181.75,181.74,39.28665266]
[1755824566519,0.06,181.75,181.74,38.62665266]
[1755824567322,0.06,181.75,181.74,39.33665266]
[1755824568620,0.06,181.75,181.74,53.21656981]
[1755824569944,0.06,181.75,181.74,52.50656981]
[1755824570529,0.06,181.75,181.74,53.21656981]
[1755824571130,0.06,181.75,181.74,52.50656981]
[1755824571330,0.06,181.75,181.74,53.21656981]
[1755824571738,0.06,181.75,181.74,52.50656981]
[1755824572729,0.06,181.75,181.74,53.21656981]
[1755824573061,0.06,181.75,181.74,95.59656981]
[1755824574337,0.06,181.75,181.74,94.88656981]
[1755824575530,0.06,181.75,181.74,52.50656981]
[1755824580039,0.06,181.75,181.74,53.21656981]
[1755824581951,0.74,181.75,181.74,42.08541415]
[1755824582149,0.74,181.75,181.74,2.205497]
[1755824582833,0.74,181.75,181.74,7.12428665]
[1755824583238,0.74,181.75,181.74,2.205497]
[1755824583856,0.06,181.75,181.74,38.62665266]
[1755824584037,0.06,181.75,181.74,27.21656981]
[1755824584235,0.06,181.75,181.74,69.59656981]
[1755824587186,1e-08,181.75,181.74,69.59656981]
[1755824588587,1e-08,181.75,181.74,68.88656981]
[1755824589356,1e-08,181.75,181.74,69.59656981]
[1755824591072,1e-08,181.75,181.74,68.88656981]
[1755824593077,1e-08,181.75,181.74,69.59656981]
[1755824597985,0.06,181.79,181.74,69.59656981]
[1755824597986,0.06,181.79,181.78,23.71749645]
[1755824598171,0.06,181.79,181.78,66.07749645]
[1755824598369,0.06,181.79,181.78,66.74749645]
[1755824598553,0.67,181.84,181.78,66.74749645]
[1755824598554,0.67,181.84,181.82,39.59559401]
[1755824598758,3.70915301,181.89,181.83,18.7987068]
[1755824598971,3.70915301,181.89,181.87,4.91878965]
[1755824599391,0.67,181.88,181.87,4.91878965]
[1755824599879,0.67,181.88,181.87,9.83757865]
[1755824601081,0.67,181.88,181.87,15.33601159]
[1755824601860,0.67,181.88,181.87,29.21592874]
[1755824602058,179.37300284,181.95,181.87,29.21592874]
[1755824602059,8.62476932,181.94,181.9,26.0]
[1755824602686,0.67,181.93,181.9,26.0]
[1755824603178,0.67,181.93,181.91,16.531203]
[1755824605083,5.58878965,181.93,181.91,16.531203]
[1755824605309,0.67,181.92,181.91,16.531203]
[1755824605483,5.58878965,181.92,181.91,16.531203]
[1755824605682,9.69500815,181.92,181.91,16.531203]
[1755824607693,5.58878965,181.92,181.91,16.531203]
[1755824607873,0.67,181.92,181.91,16.531203]
[1755824608080,5.58878965,181.92,181.91,16.531203]
[1755824608474,47.90878965,181.92,181.91,16.531203]
[1755824612470,55.70772301,181.92,181.86,26.0]
[1755824612666,4.91878965,181.89,181.85,26.0]
[1755824612885,0.67,181.88,181.87,16.534847]
[1755824613599,42.32,181.89,181.87,16.534847]
[1755824613786,42.99,181.89,181.87,16.534847]
[1755824614696,132.4,181.93,181.87,16.534847]
[1755824614899,0.67,181.91,181.87,21.45363665]
[1755824615195,0.67,181.91,181.88,4.91878965]
[1755824615981,0.67,181.91,181.89,16.533025]
[1755824616599,0.67,181.91,181.87,11.0870856]
[1755824616796,0.67,181.91,181.9,16.533024]
[1755824619200,5.58878965,181.91,181.9,16.533024]
[1755824619387,5.58878965,181.91,181.86,26.0]
[1755824619586,4.91878965,181.89,181.86,26.0]
[1755824619789,42.97,181.88,181.86,26.0]
[1755824619989,0.67,181.87,181.86,26.0]
[1755824620179,42.3,181.88,181.87,26.0]
[1755824620502,42.97,181.88,181.87,26.0]
[1755824620673,42.97,181.88,181.86,26.0]
[1755824620877,42.3,181.88,181.87,16.534847]
[1755824621483,42.97,181.88,181.87,16.534847]
[1755824622796,42.3,181.88,181.87,16.534847]
[1755824622985,42.3,181.88,181.87,42.534847]
[1755824623804,42.97,181.88,181.87,42.534847]
[1755824624908,47.88878965,181.88,181.87,16.534847]
[1755824626924,55.69607161,181.88,181.87,16.534847]
[1755824627083,55.6959923,181.88,181.87,16.534847]
[1755824627510,55.6959923,181.88,181.83,26.0]
[1755824627834,4.91878965,181.85,181.83,26.0]
[1755824628017,4.91878965,181.84,181.83,26.0]
[1755824628219,5.60878965,181.84,181.82,26.0]
[1755824628381,4.91878965,181.83,181.82,26.0]
[1755824628585,42.34,181.83,181.82,26.0]
[1755824629616,42.34,181.83,181.82,42.538493]
[1755824632416,43.03,181.83,181.82,42.538493]
[1755824632795,47.94878965,181.83,181.82,42.538493]
[1755824633126,47.94878965,181.83,181.82,16.538493]
[1755824634692,47.25878965,181.83,181.82,16.538493]
[1755824635507,47.94878965,181.83,181.82,16.538493]
[1755824638209,52.06273091,181.83,181.82,16.538493]
[1755824638414,55.76525757,181.83,181.79,0.03]
[1755824638592,4.91878965,181.8,181.79,0.03]
[1755824638793,47.25878965,181.8,181.79,0.03]
[1755824639100,47.94878965,181.8,181.79,2.23574]
[1755824640629,47.25878965,181.8,181.79,2.23574]
[1755824640795,42.34,181.82,181.79,2.91574]
[1755824641004,42.34,181.82,181.79,2.23574]
[1755824641225,42.34,181.82,181.8,0.68]
[1755824641538,47.25878965,181.82,181.8,0.68]
[1755824642208,47.25878965,181.82,181.79,2.23574]
[1755824642209,4.91878965,181.81,181.79,28.23574]
[1755824642409,5.60878965,181.8,181.79,28.23574]
[1755824642704,47.96878965,181.8,181.79,2.23574]
[1755824643908,42.36,181.8,181.79,2.23574]
[1755824644125,47.27878965,181.8,181.79,2.23574]
[1755824645524,42.36,181.8,181.79,2.23574]
[1755824645725,42.36,181.8,181.79,28.23574]
[1755824646502,0.69,181.86,181.8,13.59559401]
[1755824646723,42.38,181.85,181.81,5.59878965]
[1755824647028,42.38,181.85,181.84,26.0]
[1755824647233,47.29878965,181.85,181.84,26.0]
[1755824647438,47.29878965,181.85,181.83,26.0]
[1755824647603,47.29878965,181.85,181.84,26.0]
[1755824647924,47.98878965,181.85,181.84,16.537582]
[1755824650518,55.79826418,181.85,181.84,16.537582]
[1755824650830,51.6884354,181.85,181.8,26.0]
[1755824651027,4.91878965,181.81,181.8,26.0]
[1755824651231,47.31878965,181.81,181.8,26.0]
[1755824651440,4.91878965,181.83,181.79,0.03]
[1755824651611,42.4,181.83,181.8,17.220317]
[1755824651931,42.4,181.82,181.8,17.220317]
[1755824652605,47.31878965,181.82,181.8,16.540317]
[1755824652812,0.69,181.81,181.8,16.540317]
[1755824653012,48.00878965,181.82,181.8,16.540317]
[1755824653322,0.69,181.81,181.8,16.540317]
[1755824653806,47.31878965,181.82,181.8,16.540317]
[1755824654711,48.00878965,181.82,181.8,16.540317]
[1755824656734,47.31878965,181.82,181.8,16.540317]
[1755824656940,5.60878965,181.81,181.8,16.540317]
[1755824658016,5.60878965,181.81,181.79,0.03]
[1755824658212,47.94878965,181.8,181.79,0.03]
[1755824658414,47.94878965,181.8,181.79,16.573965]
[1755824659140,47.94878965,181.8,181.79,0.03]
[1755824660542,47.27878965,181.8,181.79,0.03]
[1755824661536,0.06,181.83,181.79,0.03]
[1755824661537,4.91878965,181.81,181.79,0.03]
[1755824661748,42.36,181.8,181.79,16.574878]
[1755824663127,47.94878965,181.8,181.79,16.574878]
[1755824665745,47.94878965,181.8,181.79,0.03]
[1755824666425,55.77330425,181.8,181.79,0.03]
[1755824668730,46.06637085,181.8,181.79,0.03]
[1755824668929,42.36,181.8,181.79,0.03]
[1755824669130,46.06830133,181.8,181.79,16.574878]
[1755824669664,42.36,181.8,181.79,16.574878]
[1755824671054,43.03,181.8,181.79,16.574878]
[1755824671241,47.94878965,181.8,181.79,16.574878]
[1755824671442,43.03,181.8,181.79,16.574878]
[1755824671636,47.94878965,181.8,181.79,16.574878]
[1755824671837,55.77934674,181.8,181.79,16.574878]
[1755824672030,59.90088507,181.8,181.79,0.03]
[1755824672230,42.36,181.8,181.79,16.574878]
[1755824674843,47.94878965,181.8,181.79,16.574878]
[1755824675043,55.78115864,181.8,181.79,0.03]
[1755824675649,55.84115864,181.8,181.79,0.03]
[1755824676854,55.84115864,181.8,181.79,16.574878]
[1755824677363,59.96486171,181.8,181.79,0.03]
[1755824678344,55.84115864,181.8,181.79,0.03]
[1755824678562,55.17115864,181.8,181.79,0.03]
[1755824679265,55.84237344,181.8,181.79,16.574878]
[1755824679436,59.9660659,181.8,181.79,0.03]
[1755824680666,59.9660659,181.8,181.79,2.235984]
[1755824682566,59.9660659,181.8,181.79,0.03]
[1755824685754,12.01727625,181.8,181.79,0.03]
[1755824685957,51.4223317,181.8,181.79,0.03]
[1755824686153,55.13236464,181.8,181.79,0.03]
[1755824687074,59.93513282,181.8,181.79,0.03]
[1755824688157,55.81236464,181.8,181.79,0.03]
[1755824688465,64.85350882,181.8,181.79,0.03]
[1755824688661,59.93471917,181.8,181.79,0.03]
[1755824688854,64.85312436,181.8,181.79,0.03]
[1755824689966,83.0520393,181.8,181.79,0.03]
[1755824690278,13.87991715,181.79,181.77,0.03]
[1755824690487,73.11425186,181.78,181.77,0.03]
[1755824690654,73.79425186,181.78,181.77,0.03]
[1755824691476,73.79155257,181.78,181.77,0.03]
[1755824691876,31.43155257,181.78,181.77,0.03]
[1755824692183,73.79155257,181.78,181.77,0.03]
[1755824693083,31.43155257,181.78,181.77,0.03]
[1755824693383,73.79155257,181.78,181.77,0.03]
[1755824697474,65.54873974,181.78,181.77,0.03]
[1755824697678,73.78430706,181.78,181.77,0.03]
[1755824700108,13.87991715,181.77,181.75,0.03]
[1755824700275,13.87991715,181.75,181.73,0.03]
[1755824700468,210.40309671,181.74,181.73,0.03]
[1755824700671,210.40309671,181.74,181.72,0.03]
[1755824700672,211.08309413,181.74,181.72,0.03]
[1755824700886,22.46317698,181.73,181.72,0.03]
[1755824702079,36.34309413,181.73,181.72,0.03]
[1755824702910,23.71749645,181.72,181.71,0.03]
[1755824703191,78.68309413,181.72,181.64,0.67]
[1755824703397,13.87991715,181.7,181.66,2.207567]
[1755824703573,4.91878965,181.67,181.66,2.207567]
[1755824703773,56.19435439,181.67,181.63,0.7]
[1755824704009,4.91878965,181.64,181.63,2.237932]
[1755824704181,47.29878965,181.64,181.63,2.237932]
[1755824704495,47.29878965,181.64,181.63,2.907932]
[1755824705282,47.29878965,181.64,181.63,2.237932]
[1755824706072,47.29878965,181.64,181.63,0.03]
[1755824707089,47.97878965,181.64,181.63,0.03]
[1755824708700,47.29878965,181.64,181.63,0.03]
[1755824709475,4.91878965,181.64,181.63,0.03]
[1755824709789,47.27878965,181.64,181.63,0.03]
[1755824711387,47.95878965,181.64,181.63,0.03]
[1755824711786,52.8775793,181.64,181.63,0.03]
[1755824714878,66.75749645,181.64,181.63,0.03]
[1755824721090,13.87991715,181.63,181.61,0.03]
[1755824721288,52.1975793,181.62,181.61,0.03]
[1755824721687,52.8675793,181.62,181.61,0.03]
[1755824722409,52.1975793,181.62,181.61,0.03]
[1755824723496,52.8675793,181.62,181.61,0.03]
[1755824725497,52.1975793,181.62,181.61,0.03]
[1755824725706,52.8675793,181.62,181.61,0.03]
[1755824728590,13.59559401,181.61,181.59,0.03]
[1755824728796,47.27878965,181.6,181.59,0.03]
[1755824729000,47.94878965,181.6,181.59,0.03]
[1755824731204,52.39505086,181.6,181.59,0.03]
[1755824733513,60.5607022,181.6,181.59,0.03]
[1755824734024,60.56387042,181.6,181.59,0.03]
[1755824734996,13.87991715,181.59,181.58,0.2]
[1755824735196,41.31446752,181.59,181.55,0.03]
[1755824735438,4.91878965,181.56,181.55,0.03]
[1755824735604,4.91878965,181.56,181.54,0.2]
[1755824735605,9.8375793,181.55,181.54,0.2]
[1755824735810,9.8375793,181.55,181.53,0.03]
[1755824735811,13.59559401,181.54,181.53,0.03]
[1755824736006,74.24631601,181.54,181.53,0.03]
[1755824736321,74.91631601,181.54,181.53,0.03]
[1755824737031,74.91518934,181.54,181.53,0.03]
[1755824737229,74.91518934,181.54,181.51,0.03]
[1755824737424,4.91878965,181.52,181.51,0.03]
[1755824737619,47.29878965,181.52,181.51,0.03]
[1755824738116,61.8487068,181.52,181.51,0.03]
[1755824738344,65.93315353,181.52,181.51,0.03]
[1755824738647,61.8487068,181.52,181.51,0.03]
[1755824738952,47.29878965,181.52,181.51,0.03]
[1755824740310,52.05426113,181.52,181.51,0.03]
[1755824740711,56.13857904,181.52,181.51,0.03]
[1755824741340,59.81502897,181.52,181.51,0.03]
[1755824742736,59.14502897,181.52,181.51,0.03]
[1755824743243,55.73071106,181.52,181.51,0.03]
[1755824743456,59.82356416,181.52,181.51,0.03]
[1755824744120,73.70348131,181.52,181.51,0.03]
[1755824745556,73.70348131,181.52,181.5,0.03]
[1755824745731,17.44356416,181.51,181.5,0.03]
[1755824746469,17.43837258,181.51,181.5,0.03]
[1755824746758,59.14837258,181.51,181.5,0.03]
[1755824746927,59.79837258,181.51,181.5,0.03]
[1755824747835,73.67828973,181.51,181.5,0.03]
[1755824748056,83.67828973,181.51,181.5,0.03]
[1755824748632,83.67828973,181.51,181.49,0.03]
[1755824748633,23.87991715,181.5,181.49,0.03]
[1755824748849,41.29828973,181.5,181.49,0.03]
[1755824749049,173.69828973,181.5,181.49,0.03]
[1755824750756,178.3349318,181.5,181.49,0.03]
[1755824751244,173.69828973,181.5,181.49,0.03]
[1755824752430,169.61172323,181.5,181.49,0.03]
[1755824752641,173.68993483,181.5,181.49,0.03]
[1755824753164,173.68993483,181.5,181.48,0.03]
[1755824753165,36.0,181.49,181.48,0.03]
[1755824753347,95.15996084,181.49,181.48,0.03]
[1755824753660,95.80996084,181.49,181.48,0.03]
[1755824754450,109.68987799,181.49,181.48,0.03]
[1755824755169,83.68987799,181.49,181.48,0.03]
[1755824755663,83.68633611,181.49,181.48,0.03]
[1755824756044,49.59559401,181.47,181.46,0.03]
[1755824756242,108.75201297,181.47,181.46,0.03]
[1755824756464,109.40201297,181.47,181.46,0.03]
[1755824757263,109.68633611,181.47,181.46,0.03]
[1755824757567,23.87991715,181.46,181.45,0.03]
[1755824757762,45.55512576,181.46,181.45,0.03]
[1755824757979,0.28432314,181.43,181.42,0.2]
[1755824758160,69.35988618,181.43,181.42,0.2]
[1755824759734,65.28107802,181.43,181.42,0.2]
[1755824760245,61.1987068,181.43,181.42,0.2]
[1755824761368,69.99967668,181.43,181.42,0.2]
[1755824761745,69.99965481,181.43,181.42,0.2]
[1755824762144,69.99843086,181.43,181.42,0.2]
[1755824762344,65.27297854,181.43,181.42,0.2]
[1755824762754,17.95418889,181.43,181.42,0.2]
[1755824762995,47.31878965,181.43,181.42,0.89]
[1755824763747,4.91878965,181.43,181.42,0.89]
[1755824763955,42.4,181.43,181.42,0.89]
[1755824766176,4.91878965,181.44,181.42,0.89]
[1755824766369,42.4,181.43,181.42,0.2]
[1755824767085,42.4,181.43,181.42,0.89]
[1755824767664,4.91878965,181.43,181.42,0.89]
[1755824767867,47.31878965,181.43,181.42,0.89]
[1755824768166,42.4,181.43,181.42,0.89]
[1755824772451,4.91878965,181.45,181.42,0.89]
[1755824772780,42.4,181.44,181.43,0.69]
[1755824772965,42.4,181.44,181.43,5.60878965]
[1755824774166,42.4,181.44,181.43,0.69]
[1755824776583,47.96878965,181.44,181.42,0.2]
[1755824776788,4.91878965,181.43,181.42,0.2]
[1755824776977,5.62878965,181.43,181.42,0.2]
[1755824777277,13.80994651,181.43,181.42,0.2]
[1755824777484,17.4931764,181.43,181.42,0.2]
[1755824779700,27.2825799,181.43,181.42,0.2]
[1755824779863,31.38636391,181.43,181.42,0.2]
[1755824780194,67.38636391,181.43,181.42,0.2]
[1755824780500,39.87991715,181.41,181.4,0.03]
[1755824780654,61.28588483,181.41,181.4,0.03]
[1755824780853,99.78601225,181.41,181.4,0.03]
[1755824783061,99.78741382,181.41,181.4,0.03]
[1755824783673,114.3972864,181.41,181.4,0.03]
[1755824783879,246.7972864,181.41,181.4,0.03]
[1755824784494,246.8036296,181.41,181.4,0.03]
[1755824785197,242.19282645,181.41,181.4,0.03]
[1755824786282,146.24991715,181.39,181.38,0.03]
[1755824786576,73.08282645,181.39,181.38,0.03]
[1755824786781,73.79282645,181.39,181.38,0.03]
[1755824787670,49.71749645,181.37,181.36,0.03]
[1755824787871,104.0016161,181.37,181.31,0.71]
[1755824788180,4.91878965,181.32,181.3,0.71]
[1755824788371,47.31878965,181.31,181.3,0.71]
[1755824789375,47.31878965,181.31,181.26,2.212084]
[1755824789376,47.31878965,181.31,181.28,0.71]
[1755824789592,4.91878965,181.29,181.23,26.0]
[1755824789772,47.31878965,181.28,181.25,16.591544]
[1755824789973,42.4,181.27,181.25,16.591544]
[1755824790198,42.4,181.27,181.26,0.71]
[1755824791970,42.42,181.27,181.26,0.71]
[1755824792171,4.91878965,181.31,181.26,5.62878965]
[1755824792375,42.42,181.3,181.27,4.91878965]
[1755824792677,42.42,181.3,181.28,0.71]
[1755824793076,42.42,181.3,181.28,5.62878965]
[1755824793276,42.42,181.3,181.28,4.91878965]
[1755824793486,42.42,181.3,181.29,0.71]
[1755824795784,48.04878965,181.3,181.28,4.94879]
[1755824795982,4.91878965,181.29,181.28,0.03]
[1755824797603,5.62878965,181.29,181.28,0.03]
[1755824799514,14.22789433,181.29,181.24,0.03]
[1755824799814,4.91878965,181.25,181.24,0.03]
[1755824799980,47.33878965,181.25,181.24,0.03]
[1755824800312,48.04878965,181.25,181.24,0.03]
[1755824803321,61.9287068,181.25,181.17,0.71]
[1755824803498,4.91878965,181.18,181.17,0.71]
[1755824803689,47.33878965,181.18,181.13,0.71]
[1755824803891,4.91878965,181.15,181.13,17.308888]
[1755824804096,47.33878965,181.15,181.14,0.71]
[1755824805430,42.42,181.15,181.14,0.71]
[1755824806026,47.33878965,181.15,181.14,0.71]
[1755824807541,47.33878965,181.15,181.13,16.598888]
[1755824807704,47.33878965,181.15,181.11,26.0]
[1755824807705,4.91878965,181.14,181.11,26.0]
[1755824807900,4.91878965,181.14,181.13,0.68]
[1755824808406,42.42,181.15,181.13,0.68]
[1755824808733,4.91878965,181.14,181.13,0.68]
[1755824809530,0.72,181.2,181.13,0.68]
[1755824809820,4.91878965,181.16,181.13,0.68]
[1755824810027,4.91878965,181.17,181.14,26.0]
[1755824810322,4.91878965,181.18,181.16,26.0]
[1755824810513,47.35878965,181.17,181.16,26.0]
[1755824811300,42.44,181.17,181.16,26.68]
[1755824811707,47.35878965,181.17,181.16,26.0]
[1755824811928,47.35878965,181.17,181.16,26.68]
[1755824812127,42.44,181.17,181.16,26.68]
[1755824813724,42.44,181.17,181.16,26.0]
[1755824813925,47.35878965,181.17,181.16,26.0]
[1755824814945,48.07878965,181.17,181.14,26.0]
[1755824815243,4.91878965,181.15,181.14,42.601643]
[1755824815433,42.44,181.15,181.14,42.601643]
[1755824815635,47.35878965,181.15,181.13,0.71]
[1755824815950,47.35878965,181.15,181.13,17.311644]
[1755824816729,42.44,181.15,181.13,17.311644]
[1755824818642,42.44,181.15,181.13,16.631644]
[1755824818956,48.07878965,181.15,181.13,16.631644]
[1755824819140,4.91878965,181.14,181.13,0.03]
[1755824820638,42.44,181.15,181.13,0.71]
[1755824820961,4.91878965,181.14,181.13,0.03]
[1755824821162,47.35878965,181.15,181.13,0.03]
[1755824821525,5.63878965,181.14,181.13,0.03]
[1755824821848,48.07878965,181.14,181.13,0.03]
[1755824822435,47.35878965,181.14,181.13,0.03]
[1755824823939,42.44,181.14,181.13,0.03]
[1755824824334,47.35878965,181.14,181.13,0.03]
[1755824827322,48.07878965,181.14,181.13,0.03]
[1755824827750,42.44,181.14,181.13,0.03]
[1755824827955,47.35878965,181.14,181.13,0.03]
[1755824828149,42.46,181.14,181.13,0.71]
[1755824828526,0.72,181.2,181.16,26.0]
[1755824828858,4.91878965,181.18,181.16,26.68]
[1755824829159,42.46,181.17,181.16,26.0]
[1755824830977,42.46,181.17,181.16,42.599806]
[1755824831136,48.09878965,181.17,181.13,0.03]
[1755824831337,4.91878965,181.15,181.13,26.03]
[1755824831639,4.91878965,181.15,181.13,42.632562]
[1755824831640,42.46,181.14,181.13,42.632562]
[1755824832332,48.09878965,181.14,181.13,16.632562]
[1755824832733,42.46,181.14,181.13,16.632562]
[1755824833136,47.37878965,181.14,181.13,16.632562]
[1755824833336,48.09878965,181.14,181.13,16.632562]
[1755824835331,47.37878965,181.14,181.13,16.632562]
[1755824836155,48.09878965,181.14,181.13,16.632562]
[1755824836955,48.09878965,181.14,181.13,0.03]
[1755824840154,52.19391861,181.14,181.13,0.03]
[1755824840344,56.29153363,181.14,181.13,0.03]
[1755824841032,56.29401969,181.14,181.13,0.03]
[1755824841252,59.98303277,181.14,181.13,0.03]
[1755824842136,73.86294992,181.14,181.13,0.03]
[1755824842526,13.87991715,181.13,181.11,0.03]
[1755824842743,59.26303277,181.12,181.11,0.03]
[1755824843146,59.95303277,181.12,181.11,0.03]
[1755824843335,73.83294992,181.12,181.11,0.03]
[1755824843957,69.73758053,181.12,181.11,0.03]
[1755824844161,73.83744118,181.12,181.11,0.03]
[1755824844348,73.83744118,181.12,181.09,0.03]
[1755824844540,4.91878965,181.1,181.09,0.03]
[1755824844739,59.28752403,181.1,181.09,0.03]
[1755824845058,64.89631368,181.1,181.09,0.03]
[1755824845456,78.77623083,181.1,181.09,0.03]
[1755824845661,146.27991715,181.09,181.01,17.300836]
[1755824845834,4.91878965,181.02,180.99,0.69]
[1755824846033,4.91878965,181.02,181.0,17.304516]
[1755824846034,42.48,181.01,181.0,17.304516]
[1755824846466,47.39878965,181.01,180.99,0.69]
[1755824846651,47.39878965,181.01,180.99,17.305436]
[1755824847161,47.39878965,181.01,180.99,16.615436]
[1755824847470,4.91878965,181.0,180.98,26.0]
[1755824847633,47.39878965,180.99,180.96,0.69]
[1755824847839,47.41878965,180.98,180.97,16.617276]
[1755824848235,42.5,180.98,180.97,16.617276]
[1755824848445,47.41878965,180.98,180.97,16.617276]
[1755824848741,48.10878965,180.98,180.92,0.69]
[1755824848949,43.19,180.98,180.95,16.619118]
[1755824849151,4.91878965,180.96,180.9,0.69]
[1755824849467,43.19,180.95,180.92,16.619118]